bitfinex/quotes_SOLUSD_20251030
["timestamp","ask_amount","ask_price","bid_price","bid_amount"]
[1761845626286,18.52397726,182.4,182.34,5.73397726]
[1761845626707,18.52397726,182.4,182.31,0.66]
[1761845626708,5.73397726,182.37,182.31,11.21909022]
[1761845626874,5.73397726,182.36,182.31,5.48511296]
[1761845627075,5.73397726,182.37,182.31,11.21909022]
[1761845627409,5.73397726,182.35,182.31,5.48511296]
[1761845627700,5.73397726,182.35,182.29,11.21949932]
[1761845627911,5.73397726,182.35,182.29,5.48552206]
[1761845628101,5.73397726,182.36,182.3,5.73397726]
[1761845628291,5.73397726,182.37,182.31,5.73397726]
[1761845628606,5.73397726,182.33,182.27,6.39397726]
[1761845628906,5.73397726,182.34,182.28,5.73397726]
[1761845629081,5.73397726,182.34,182.28,26.32597726]
[1761845629617,6.40397726,182.34,182.28,26.32597726]
[1761845629793,5.73397726,182.36,182.3,5.73397726]
[1761845630111,0.67,182.35,182.29,24.93390067]
[1761845630310,5.73397726,182.36,182.29,24.93390067]
[1761845630694,5.73397726,182.36,182.29,19.19992341]
[1761845630918,5.73397726,182.36,182.28,26.32597726]
[1761845630919,5.73397726,182.34,182.28,26.32597726]
[1761845631090,0.67,182.35,182.27,5.73397726]
[1761845631091,5.73397726,182.33,182.27,5.73397726]
[1761845631408,6.40397726,182.35,182.29,5.73397726]
[1761845631636,5.73397726,182.35,182.29,5.73397726]
[1761845631815,17.81397726,182.37,182.31,5.73397726]
[1761845631995,12.08,182.37,182.33,5.73397726]
[1761845632492,0.67,182.41,182.36,5.73397726]
[1761845632703,5.73397726,182.43,182.38,5.73397726]
[1761845632704,12.08,182.42,182.38,5.73397726]
[1761845632892,12.08,182.42,182.34,0.66]
[1761845632893,18.23188874,182.42,182.37,5.73397726]
[1761845633100,0.67,182.41,182.36,5.73397726]
[1761845633302,0.67,182.41,182.32,20.592]
[1761845633303,0.67,182.41,182.37,5.73397726]
[1761845633495,12.08,182.42,182.37,5.73397726]
[1761845633817,18.23196402,182.42,182.37,5.73397726]
[1761845633984,0.67,182.41,182.37,5.73397726]
[1761845634190,0.67,182.41,182.36,5.73397726]
[1761845635326,17.56196402,182.42,182.37,5.73397726]
[1761845635798,0.67,182.41,182.37,5.73397726]
[1761845636120,17.56191633,182.42,182.38,5.73397726]
[1761845636313,18.23191633,182.42,182.38,5.73397726]
[1761845636504,18.23191633,182.42,182.36,5.48365869]
[1761845636702,18.23191633,182.42,182.38,5.73397726]
[1761845636918,18.23191633,182.42,182.33,13.71138984]
[1761845636919,18.23191633,182.42,182.34,20.592]
[1761845637225,18.23191633,182.42,182.37,5.73397726]
[1761845637526,5.73397726,182.4,182.3,0.66]
[1761845637712,17.56191633,182.42,182.38,5.73397726]
[1761845638025,12.08,182.42,182.39,5.73397726]
[1761845638520,12.08,182.42,182.4,5.73397726]
[1761845639203,12.08,182.42,182.41,5.73397726]
[1761845639811,5.48096799,182.45,182.41,5.73397726]
[1761845639812,5.48071279,182.46,182.41,5.73397726]
[1761845640120,12.08,182.45,182.42,5.73397726]
[1761845640436,5.73397726,182.43,182.32,0.66]
[1761845640720,5.73397726,182.39,182.34,5.73397726]
[1761845641023,5.73397726,182.39,182.33,5.73397726]
[1761845641205,12.08,182.4,182.35,5.73397726]
[1761845641396,12.08,182.4,182.36,5.73397726]
[1761845641593,12.08,182.4,182.37,5.73397726]
[1761845641894,12.08,182.4,182.33,0.66]
[1761845641895,12.08,182.4,182.39,5.73397726]
[1761845642108,12.08,182.44,182.39,5.73397726]
[1761845642315,12.08,182.44,182.4,5.73397726]
[1761845643293,17.56127483,182.44,182.39,5.73397726]
[1761845643499,12.08,182.44,182.4,5.73397726]
[1761845644126,12.08,182.44,182.41,5.73397726]
[1761845644311,0.2,182.51,182.41,5.73397726]
[1761845644312,6.14976639,182.49,182.43,5.73397726]
[1761845644514,5.73397726,182.45,182.38,20.592]
[1761845644829,12.75,182.48,182.34,5.73397726]
[1761845645031,5.73397726,182.39,182.33,5.73397726]
[1761845645203,5.73397726,182.38,182.32,6.39397726]
[1761845645400,8.72449819,182.39,182.33,8.72449819]
[1761845645597,8.72449819,182.39,182.33,9.38449819]
[1761845645925,9.39449819,182.39,182.33,8.72449819]
[1761845646913,17.56246473,182.4,182.28,8.72449819]
[1761845646914,8.72449819,182.34,182.28,8.72449819]
[1761845647399,14.20889937,182.34,182.28,8.72449819]
[1761845647598,14.20889937,182.34,182.23,0.66]
[1761845647599,8.72449819,182.29,182.23,0.66]
[1761845647821,8.72449819,182.3,182.23,0.66]
[1761845648025,8.72449819,182.29,182.24,8.72449819]
[1761845648226,8.72449819,182.29,182.24,9.38449819]
[1761845648534,12.08,182.3,182.26,8.72449819]
[1761845648703,12.08,182.33,182.28,8.72449819]
[1761845649029,12.08,182.35,182.31,8.72449819]
[1761845649233,12.08,182.35,182.29,0.66]
[1761845649409,12.08,182.35,182.33,8.72449819]
[1761845649610,8.72449819,182.39,182.3,0.69]
[1761845649611,9.41449819,182.37,182.3,0.69]
[1761845649816,9.41449819,182.37,182.32,8.72449819]
[1761845650019,8.72449819,182.36,182.31,8.72449819]
[1761845650212,9.41449819,182.37,182.31,8.72449819]
[1761845650624,14.89813417,182.37,182.31,8.72449819]
[1761845650828,5.48363598,182.37,182.32,8.72449819]
[1761845651008,8.72449819,182.38,182.33,8.72449819]
[1761845651211,26.97727836,182.39,182.33,8.72449819]
[1761845651411,8.72449819,182.38,182.33,8.72449819]
[1761845651814,9.41449819,182.38,182.33,8.72449819]
[1761845652326,6.17325076,182.38,182.33,8.72449819]
[1761845652533,20.80449819,182.39,182.33,8.72449819]
[1761845652534,20.80449819,182.39,182.33,9.41449819]
[1761845652723,9.41449819,182.38,182.33,8.72449819]
[1761845653039,9.41449819,182.38,182.32,8.72449819]
[1761845653228,8.72449819,182.37,182.31,8.72449819]
[1761845654242,14.20795065,182.37,182.3,67.87534564]
[1761845654574,9.41449819,182.37,182.31,8.72449819]
[1761845654717,9.41449819,182.37,182.3,67.87534564]
[1761845654718,0.69,182.37,182.32,8.72449819]
[1761845654938,8.72449819,182.38,182.32,8.72449819]
[1761845655217,8.72449819,182.38,182.33,8.72449819]
[1761845655627,12.75,182.39,182.36,8.72449819]
[1761845655628,12.08,182.39,182.36,8.72449819]
[1761845656019,12.08,182.39,182.36,9.44449819]
[1761845656213,12.08,182.39,182.35,5.4837143]
[1761845656429,12.08,182.39,182.36,8.72449819]
[1761845656827,12.08,182.39,182.36,9.44449819]
[1761845657333,12.08,182.39,182.36,8.72449819]
[1761845657642,12.08,182.39,182.36,9.44449819]
[1761845657935,12.08,182.39,182.36,71.14449819]
[1761845658138,8.72449819,182.37,182.32,61.7]
[1761845658643,12.08,182.39,182.36,8.72449819]
[1761845658855,0.67,182.46,182.38,8.72449819]
[1761845659141,8.34567743,182.48,182.39,8.72449819]
[1761845659142,21.47449819,182.45,182.39,8.72449819]
[1761845659343,12.08,182.45,182.4,8.72449819]
[1761845659531,9.39449819,182.44,182.37,20.592]
[1761845659730,9.39449819,182.44,182.39,8.72449819]
[1761845660048,20.80449819,182.45,182.4,8.72449819]
[1761845660547,21.47449819,182.45,182.4,14.20688396]
[1761845660917,12.08,182.45,182.38,14.4275815]
[1761845661251,26.28550072,182.45,182.39,8.72449819]
[1761845661435,26.28550072,182.45,182.36,8.72449819]
[1761845661436,8.72449819,182.41,182.36,8.72449819]
[1761845661680,12.06,182.41,182.36,8.72449819]
[1761845662039,8.72449819,182.39,182.34,8.72449819]
[1761845662239,8.72449819,182.37,182.31,22.43736524]
[1761845662546,20.78449819,182.37,182.32,5.48486178]
[1761845662737,12.06,182.37,182.32,8.72449819]
[1761845662926,9.39449819,182.36,182.31,8.72449819]
[1761845663248,20.78449819,182.37,182.31,8.72449819]
[1761845663423,26.26786526,182.37,182.31,8.72449819]
[1761845663817,8.72449819,182.36,182.3,14.209922]
[1761845664043,8.72449819,182.36,182.3,5.48542381]
[1761845664352,21.45449819,182.37,182.31,8.72449819]
[1761845664650,21.45449819,182.37,182.29,0.72]
[1761845664651,8.72449819,182.36,182.29,0.72]
[1761845664824,8.72449819,182.35,182.29,9.44449819]
[1761845665148,9.39449819,182.36,182.3,8.72449819]
[1761845665450,0.67,182.36,182.31,8.72449819]
[1761845665848,12.06,182.37,182.35,8.72449819]
[1761845666656,12.06,182.37,182.32,0.72]
[1761845666951,12.06,182.37,182.33,8.72449819]
[1761845667121,12.06,182.37,182.35,8.72449819]
[1761845667453,12.06,182.37,182.36,8.72449819]
[1761845667836,12.06,182.4,182.33,0.72]
[1761845668130,8.72449819,182.36,182.31,8.72449819]
[1761845668318,20.78449819,182.36,182.31,8.72449819]
[1761845668525,12.06,182.36,182.32,8.72449819]
[1761845668722,12.06,182.36,182.32,14.20934165]
[1761845668953,12.73,182.36,182.31,8.72449819]
[1761845669248,12.73,182.36,182.31,14.2096592]
[1761845669454,12.06,182.36,182.32,9.44449819]
[1761845669627,12.06,182.36,182.33,8.72449819]
[1761845670136,12.06,182.36,182.34,8.72449819]
[1761845670729,12.06,182.36,182.35,5.48395941]
[1761845670940,12.06,182.36,182.34,8.72449819]
[1761845671130,12.06,182.36,182.33,8.72449819]
[1761845671447,12.06,182.36,182.32,67.90462272]
[1761845671621,12.06,182.36,182.33,8.72449819]
[1761845671821,12.06,182.36,182.32,70.42449819]
[1761845672026,12.73,182.36,182.32,70.42449819]
[1761845672244,12.73,182.36,182.32,75.90930271]
[1761845672435,12.06,182.36,182.34,8.72449819]
[1761845672822,12.06,182.36,182.32,61.7]
[1761845673042,12.06,182.36,182.32,67.18484513]
[1761845673225,12.06,182.36,182.33,8.72449819]
[1761845673630,12.06,182.37,182.32,6.20484513]
[1761845673926,12.06,182.37,182.33,8.72449819]
[1761845674134,12.06,182.37,182.35,8.72449819]
[1761845674631,12.06,182.37,182.34,8.72449819]
[1761845674954,14.20717856,182.4,182.34,9.44449819]
[1761845674955,12.06,182.38,182.34,9.44449819]
[1761845675155,12.06,182.38,182.34,14.9287518]
[1761845675349,12.06,182.38,182.32,0.72]
[1761845675546,170.35858477,182.51,182.37,8.72449819]
[1761845675547,0.67,182.46,182.37,8.72449819]
[1761845675734,0.67,182.46,182.35,20.592]
[1761845675735,9.39449819,182.49,182.43,8.72449819]
[1761845676060,9.39449819,182.49,182.31,0.72]
[1761845676061,8.72449819,182.44,182.31,0.72]
[1761845676260,8.72449819,182.37,182.31,29.31649819]
[1761845676435,12.06,182.36,182.33,8.72449819]
[1761845676636,12.06,182.36,182.34,8.72449819]
[1761845676946,12.06,182.39,182.34,0.72]
[1761845677146,12.06,182.39,182.34,14.92865913]
[1761845677346,12.06,182.39,182.35,8.72449819]
[1761845677741,12.06,182.39,182.34,0.72]
[1761845678143,12.06,182.39,182.34,9.44449819]
[1761845678347,8.72449819,182.36,182.31,21.312]
[1761845678564,8.72449819,182.36,182.31,20.592]
[1761845678768,8.72449819,182.34,182.31,20.592]
[1761845679065,8.72449819,182.32,182.27,5.48636637]
[1761845679237,8.72449819,182.32,182.27,26.07836637]
[1761845679435,8.72449819,182.32,182.26,9.78882769]
[1761845679436,9.40449819,182.32,182.26,5.48658626]
[1761845679640,8.72449819,182.3,182.25,6.20692419]
[1761845680157,8.72449819,182.3,182.26,0.69]
[1761845680543,8.72449819,182.3,182.23,12.06]
[1761845680544,0.68,182.29,182.23,0.69]
[1761845680863,8.72449819,182.27,182.23,6.17754869]
[1761845681269,8.72449819,182.27,182.23,20.592]
[1761845681438,8.72449819,182.25,182.19,6.17851565]
[1761845681639,8.72449819,182.23,182.19,0.69]
[1761845681854,8.72449819,182.23,182.2,20.592]
[1761845682364,8.72449819,182.23,182.2,21.282]
[1761845682542,8.72449819,182.23,182.2,0.69]
[1761845682743,8.72449819,182.23,182.19,5.48866944]
[1761845682957,8.72449819,182.23,182.18,26.08107673]
[1761845683153,8.72449819,182.23,182.18,20.592]
[1761845683358,8.72449819,182.23,182.1,29.45629036]
[1761845683359,8.72449819,182.19,182.1,0.69]
[1761845683538,8.72449819,182.17,182.13,5.5904818]
[1761845683737,8.72449819,182.17,182.13,6.2804818]
[1761845683943,8.72449819,182.17,182.14,0.69]
[1761845684139,8.72449819,182.2,182.14,0.69]
[1761845684347,20.78449819,182.2,182.14,0.69]
[1761845684558,8.72449819,182.2,182.14,0.69]
[1761845684865,8.72449819,182.19,182.13,0.1]
[1761845685251,8.72449819,182.17,182.13,26.18257446]
[1761845685644,8.72449819,182.17,182.13,21.382]
[1761845685845,8.72449819,182.17,182.13,0.1]
[1761845686170,8.72449819,182.16,182.13,0.1]
[1761845686339,12.06,182.17,182.13,0.1]
[1761845686547,20.78449819,182.17,182.13,5.59057227]
[1761845686956,20.78449819,182.17,182.13,0.1]
[1761845687269,26.95387825,182.17,182.13,0.1]
[1761845687469,20.78449819,182.17,182.13,0.1]
[1761845687942,9.40449819,182.17,182.13,0.1]
[1761845688344,20.78449819,182.17,182.13,5.59053724]
[1761845688544,12.06,182.17,182.13,6.28053724]
[1761845688963,8.72449819,182.21,182.15,20.592]
[1761845689160,8.72449819,182.21,182.14,6.18027175]
[1761845689356,8.72449819,182.21,182.14,14.90476994]
[1761845689554,12.74,182.23,182.14,14.21476994]
[1761845689759,12.06,182.23,182.17,29.31649819]
[1761845690151,12.06,182.23,182.18,0.69]
[1761845690352,12.06,182.23,182.18,9.41449819]
[1761845690554,12.06,182.23,182.19,0.69]
[1761845690844,26.95207713,182.23,182.16,8.72449819]
[1761845691050,26.27207713,182.23,182.16,14.90397941]
[1761845691368,12.06,182.23,182.17,9.41449819]
[1761845691694,26.27224465,182.23,182.17,0.69]
[1761845691977,8.72449819,182.21,182.15,21.282]
[1761845692170,8.72449819,182.21,182.15,30.00649819]
[1761845692468,18.22774646,182.23,182.15,30.00649819]
[1761845692469,20.78449819,182.23,182.16,9.41449819]
[1761845692670,14.21211799,182.23,182.16,9.41449819]
[1761845692861,26.27211799,182.23,182.17,0.69]
[1761845693061,20.78449819,182.23,182.17,0.69]
[1761845693256,26.27212836,182.23,182.17,0.69]
[1761845693461,26.95212836,182.23,182.16,9.41449819]
[1761845693855,8.72449819,182.22,182.16,6.17964492]
[1761845694063,20.78449819,182.22,182.16,6.17964492]
[1761845694261,8.72449819,182.21,182.16,0.69]
[1761845694752,8.72449819,182.2,182.15,20.592]
[1761845694948,8.72449819,182.19,182.13,6.28030151]
[1761845695179,8.72449819,182.18,182.13,6.28030151]
[1761845695360,12.06,182.18,182.13,6.28030151]
[1761845695557,12.06,182.18,182.13,14.3147997]
[1761845695864,12.06,182.2,182.14,9.41449819]
[1761845696066,20.78449819,182.2,182.14,0.69]
[1761845696654,12.06,182.2,182.14,0.69]
[1761845697052,8.72449819,182.19,182.14,0.69]
[1761845697476,20.78449819,182.2,182.14,6.18018609]
[1761845697678,26.27307484,182.2,182.14,0.69]
[1761845697867,8.72449819,182.19,182.14,0.69]
[1761845698682,8.72449819,182.19,182.14,6.18027825]
[1761845698890,8.72449819,182.19,182.14,0.69]
[1761845699211,9.40449819,182.18,182.13,0.1]
[1761845699679,0.68,182.18,182.13,0.1]
[1761845699979,8.72449819,182.16,182.13,0.1]
[1761845700165,20.78449819,182.16,182.13,0.1]
[1761845700374,8.72449819,182.15,182.13,0.1]
[1761845701378,12.06,182.16,182.13,6.28057203]
[1761845701581,20.78449819,182.19,182.13,6.28057203]
[1761845701788,6.1675993,182.23,182.14,9.41449819]
[1761845701968,8.72449819,182.25,182.17,8.72449819]
[1761845702156,8.72449819,182.25,182.14,21.282]
[1761845702157,11.317,182.23,182.18,8.72449819]
[1761845702356,11.317,182.23,182.15,12.75]
[1761845702357,11.317,182.23,182.17,8.72449819]
[1761845702884,20.04149819,182.23,182.17,0.69]
[1761845703093,8.72449819,182.22,182.17,0.69]
[1761845703294,20.04149819,182.23,182.17,6.17926692]
[1761845703493,11.317,182.23,182.17,5.48926692]
[1761845703698,11.317,182.23,182.18,0.69]
[1761845703867,0.68,182.27,182.19,8.72449819]
[1761845704192,8.72449819,182.24,182.18,0.69]
[1761845704394,8.72449819,182.24,182.15,0.69]
[1761845704395,8.72449819,182.2,182.15,0.69]
[1761845704691,8.72449819,182.2,182.16,20.592]
[1761845704881,0.68,182.23,182.16,20.592]
[1761845705086,0.68,182.23,182.13,0.1]
[1761845705280,8.72449819,182.14,182.13,0.1]
[1761845705479,5.75756218,182.14,182.13,0.1]
[1761845705985,6.43756218,182.14,182.13,0.1]
[1761845706985,6.43756218,182.14,182.12,0.1]
[1761845707179,25.65460494,182.13,181.97,0.69]
[1761845707389,5.75756218,181.99,181.92,0.69]
[1761845707588,12.06,182.0,181.92,0.69]
[1761845707803,17.81756218,182.0,181.94,20.592]
[1761845708007,1.99999999,182.11,181.94,20.592]
[1761845708008,0.68,182.08,181.97,5.75756218]
[1761845708170,0.68,182.08,181.95,0.69]
[1761845708171,5.75756218,182.02,181.95,0.69]
[1761845708375,5.75756218,182.0,181.95,0.69]
[1761845708680,5.75756218,182.01,181.95,0.69]
[1761845708885,17.81756218,182.01,181.95,0.69]
[1761845709208,17.81756218,182.01,181.95,6.1859664]
[1761845709499,17.81756218,182.01,181.9,16.09643451]
[1761845709500,5.75756218,182.04,181.98,5.75756218]
[1761845709667,5.75756218,182.03,181.96,0.72]
[1761845709869,0.71,182.04,181.96,0.72]
[1761845710092,5.75756218,182.02,181.96,0.72]
[1761845710483,12.77,182.01,181.93,0.72]
[1761845710684,17.81756218,182.0,181.93,6.47756218]
[1761845710998,17.81756218,182.0,181.93,27.06956218]
[1761845711190,17.81756218,182.0,181.94,5.49631746]
[1761845711389,17.81756218,182.0,181.93,27.06956218]
[1761845711390,5.75756218,181.98,181.93,20.592]
[1761845711590,5.75756218,181.96,181.9,0.72]
[1761845711900,5.75756218,181.95,181.88,5.85756218]
[1761845712088,17.81756218,181.96,181.89,26.34956218]
[1761845712511,5.75756218,181.95,181.88,0.1]
[1761845712812,5.75756218,181.92,181.88,0.1]
[1761845713009,12.06,181.96,181.88,0.1]
[1761845713209,17.81756218,181.95,181.88,6.57756218]
[1761845713392,5.75756218,181.94,181.88,6.57756218]
[1761845713596,5.75756218,181.94,181.88,6.31811294]
[1761845713907,23.31368414,181.95,181.88,6.31811294]
[1761845714111,5.75756218,181.94,181.88,0.82]
[1761845714489,12.06,181.93,181.88,0.82]
[1761845714898,12.06,181.93,181.88,6.31797842]
[1761845715210,12.06,181.93,181.88,0.82]
[1761845715432,0.69,182.02,181.92,5.75756218]
[1761845715597,4.3618875,182.12,181.96,5.75756218]
[1761845715598,0.69,182.06,181.96,5.75756218]
[1761845715781,0.69,182.06,181.95,20.592]
[1761845715782,0.69,182.06,181.97,6.42756218]
[1761845715988,5.75756218,182.06,181.99,5.75756218]
[1761845716190,5.75756218,182.06,182.0,0.67]
[1761845716412,5.75756218,182.1,182.04,5.75756218]
[1761845716611,17.81756218,182.1,182.04,5.75756218]
[1761845716813,17.81756218,182.1,182.0,0.67]
[1761845716814,5.75756218,182.05,182.02,20.592]
[1761845717114,5.75756218,182.07,182.03,0.67]
[1761845717318,5.75756218,182.06,182.03,0.67]
[1761845717696,5.75756218,182.07,182.03,6.16358244]
[1761845717888,5.75756218,182.07,182.03,0.67]
[1761845718094,5.75756218,182.08,182.03,0.67]
[1761845718289,5.75756218,182.07,182.02,20.592]
[1761845718514,6.1817964,182.09,182.02,20.592]
[1761845718515,5.75756218,182.06,182.02,20.592]
[1761845718816,5.75756218,182.07,182.02,20.592]
[1761845719242,5.75756218,182.08,182.02,31.84346203]
[1761845719402,12.06,182.09,182.05,5.75756218]
[1761845719713,0.69,182.13,182.06,5.75756218]
[1761845719917,17.81756218,182.12,182.06,5.75756218]
[1761845720612,5.75756218,182.08,182.02,20.592]
[1761845720810,5.75756218,182.08,182.02,26.34956218]
[1761845721321,5.75756218,182.03,181.98,0.67]
[1761845721523,5.49299407,182.06,181.88,0.1]
[1761845721524,5.75756218,182.0,181.94,5.75756218]
[1761845721892,5.75756218,182.0,181.94,6.42756218]
[1761845722090,5.75756218,182.01,181.95,26.34956218]
[1761845722286,5.75756218,181.99,181.91,0.67]
[1761845722490,12.06,181.98,181.91,6.42756218]
[1761845722719,17.81756218,181.98,181.91,27.01956218]
[1761845722917,17.81756218,181.98,181.91,6.42756218]
[1761845723094,17.81756218,181.98,181.89,19.24231104]
[1761845723095,12.06,181.98,181.94,5.75756218]
[1761845723501,12.06,181.98,181.96,5.75756218]
[1761845723725,12.06,181.98,181.96,6.42756218]
[1761845724018,12.06,182.03,181.97,6.42756218]
[1761845724223,12.06,182.03,181.98,5.75756218]
[1761845724423,5.75756218,182.0,181.94,0.67]
[1761845724598,5.75756218,181.99,181.93,5.75756218]
[1761845725414,0.69,182.02,181.93,5.75756218]
[1761845725415,5.49473284,182.0,181.93,5.75756218]
[1761845725646,5.75756218,181.98,181.92,0.67]
[1761845725813,17.81756218,181.98,181.92,6.42756218]
[1761845726220,5.75756218,181.95,181.89,5.75756218]
[1761845726522,0.69,181.97,181.91,5.75756218]
[1761845726746,5.75756218,181.95,181.89,6.42756218]
[1761845726943,6.44756218,181.97,181.9,5.75756218]
[1761845727144,5.75756218,181.96,181.9,5.75756218]
[1761845727521,0.69,181.97,181.9,5.75756218]
[1761845727522,5.75756218,181.97,181.91,5.75756218]
[1761845727740,0.69,182.04,181.95,5.75756218]
[1761845727924,5.75756218,182.02,181.96,5.75756218]
[1761845728323,5.75756218,182.02,181.96,6.42756218]
[1761845728830,12.06,182.03,181.97,5.75756218]
[1761845729024,12.06,182.03,181.99,5.75756218]
[1761845729224,12.06,182.03,181.99,0.67]
[1761845729423,17.81756218,182.06,182.0,6.42756218]
[1761845729647,5.75756218,182.05,181.98,5.49510935]
[1761845729948,5.75756218,182.03,181.97,5.75756218]
[1761845730154,5.75756218,182.03,181.97,11.2529554]
[1761845730459,5.75756218,182.03,181.97,11.9229554]
[1761845730628,5.75756218,182.04,181.98,5.75756218]
[1761845730822,0.69,182.05,182.0,5.75756218]
[1761845730823,12.06,182.05,182.0,5.75756218]
[1761845731223,12.06,182.05,182.01,0.67]
[1761845731729,12.06,182.06,182.01,5.75756218]
[1761845731951,12.06,182.06,182.01,6.42756218]
[1761845732260,12.06,182.1,182.04,5.75756218]
[1761845732553,17.81756218,182.1,182.04,5.75756218]
[1761845732755,5.75756218,182.08,182.03,0.67]
[1761845732953,12.06,182.1,182.02,26.34956218]
[1761845732954,5.75756218,182.05,182.02,20.592]
[1761845733450,5.75756218,182.05,181.99,88.45677816]
[1761845733640,5.75756218,182.06,182.0,5.75756218]
[1761845733836,5.75756218,182.06,182.0,6.42756218]
[1761845734030,5.75756218,182.06,182.0,62.37]
[1761845734350,5.75756218,182.06,182.0,68.12756218]
[1761845734548,0.69,182.11,182.03,5.75756218]
[1761845734753,5.75756218,182.09,182.03,61.7]
[1761845734960,12.04,182.1,182.03,61.7]
[1761845735170,5.75756218,182.07,182.03,61.7]
[1761845735461,5.75756218,182.06,182.03,61.7]
[1761845737740,5.75756218,182.06,182.01,0.67]
[1761845737944,12.04,182.05,181.98,5.75756218]
[1761845738167,12.04,182.05,182.0,5.75756218]
[1761845738332,17.79756218,182.05,181.99,0.67]
[1761845738658,17.79756218,182.05,181.99,6.42756218]
[1761845738962,5.49190362,182.09,182.0,5.75756218]
[1761845739266,5.75756218,182.07,182.01,6.41756218]
[1761845739447,5.75756218,182.07,181.98,20.592]
[1761845739448,5.75756218,182.06,181.99,0.66]
[1761845739629,5.75756218,182.06,181.99,6.41756218]
[1761845739834,11.25028554,182.06,181.99,6.41756218]
[1761845740154,5.49272336,182.06,181.99,6.41756218]
[1761845740360,5.49272336,182.06,181.99,0.66]
[1761845740361,5.75756218,182.04,181.99,0.66]
[1761845740535,13.73107427,182.07,182.0,0.66]
[1761845740536,5.75756218,182.05,182.0,0.66]
[1761845740745,5.75756218,182.04,182.0,0.66]
[1761845741140,5.75756218,182.01,181.95,5.75756218]
[1761845741328,5.75756218,182.01,181.95,0.66]
[1761845741653,5.75756218,182.01,181.95,6.41756218]
[1761845742163,5.75756218,182.01,181.95,0.66]
[1761845742360,5.75756218,182.0,181.95,0.66]
[1761845743362,5.75756218,182.01,181.95,6.41756218]
[1761845743548,5.75756218,182.02,181.95,6.41756218]
[1761845743856,5.75756218,182.01,181.95,6.41756218]
[1761845744363,5.75756218,181.98,181.92,6.41756218]
[1761845744534,5.75756218,181.98,181.92,0.66]
[1761845744735,17.79756218,181.98,181.92,0.66]
[1761845744929,5.75756218,181.96,181.9,5.75756218]
[1761845745131,5.75756218,181.95,181.88,5.85756218]
[1761845745361,46.69824417,182.02,181.88,5.85756218]
[1761845745362,0.68,182.01,181.89,0.66]
[1761845745542,0.68,182.01,181.92,5.75756218]
[1761845745543,5.75756218,181.98,181.92,5.75756218]
[1761845745864,5.75756218,181.97,181.91,6.41756218]
[1761845746154,26.45696853,182.0,181.91,6.41756218]
[1761845746361,5.75756218,181.98,181.92,5.75756218]
[1761845746531,5.75756218,181.97,181.92,0.66]
[1761845746938,5.75756218,181.99,181.92,0.66]
[1761845747139,5.75756218,181.99,181.93,5.75756218]
[1761845747341,5.75756218,181.99,181.92,0.66]
[1761845747342,5.75756218,181.98,181.92,6.41756218]
[1761845747550,5.75756218,181.97,181.92,0.66]
[1761845747969,11.25304287,181.97,181.92,0.66]
[1761845748660,5.75756218,181.96,181.92,0.66]
[1761845748956,5.75756218,181.96,181.88,0.1]
[1761845748957,5.75756218,181.94,181.89,6.41756218]
[1761845749268,5.49496102,181.99,181.9,5.75756218]
[1761845749457,5.49496102,181.99,181.88,0.1]
[1761845749458,5.75756218,181.91,181.88,0.1]
[1761845749632,5.75756218,181.89,181.88,0.1]
[1761845749839,11.25539053,181.89,181.88,0.1]
[1761845750138,5.49758034,181.9,181.88,0.1]
[1761845750337,11.2544839,181.92,181.88,0.76]
[1761845750557,11.2544839,181.92,181.88,0.1]
[1761845750558,5.75756218,181.9,181.88,0.1]
[1761845750763,5.49692172,181.92,181.88,0.1]
[1761845750764,11.2544839,181.92,181.88,0.1]
[1761845751063,19.23922602,181.92,181.88,0.76]
[1761845751269,5.75756218,181.9,181.88,0.1]
[1761845751441,5.75756218,181.89,181.88,0.1]
[1761845751850,11.25539053,181.89,181.88,0.1]
[1761845752780,11.93539053,181.89,181.88,0.1]
[1761845752961,14.86666492,181.89,181.88,0.1]
[1761845753165,11.25539053,181.89,181.88,0.1]
[1761845753674,53.1691032,181.89,181.81,0.66]
[1761845753862,5.75756218,181.85,181.81,0.66]